[Event "Titled Tuesday Blitz June 29 2021"]
[White "WisdomGame"]
[Black "Andrii_Prydun"]
[WhiteElo "2280"]
[BlackElo "2529"]
[Result "1-0"]
[Round "07"]
[TimeControl "180+1"]
[Date "2021.06.29"]
[WhiteClock "0:00:21"]
[BlackClock "0:00:49"]

1. e4 {[%clk 0:03:00]}  d5 {[%clk 0:03:00]} 2. exd5 {[%clk 0:02:59]}  Qxd5 {[%clk 0:03:01]} 3. Nc3 {[%clk 0:02:59]}  Qd6 {[%clk 0:03:01]} 4. d4 {[%clk 0:02:57]}  Nf6 {[%clk 0:03:01]} 5. Nf3 {[%clk 0:02:58]}  c6 {[%clk 0:03:00]} 6. Be2 {[%clk 0:02:55]}  Bg4 {[%clk 0:03:00]} 7. O-O {[%clk 0:02:54]}  Nbd7 {[%clk 0:03:00]} 8. h3 {[%clk 0:02:54]}  Bh5 {[%clk 0:02:59]} 9. Be3 {[%clk 0:02:25]}  e6 {[%clk 0:02:56]} 10. a4 {[%clk 0:02:17]}  a5 {[%clk 0:02:44]} 11. Nd2 {[%clk 0:02:13]}  Be7 {[%clk 0:02:42]} 12. Bxh5 {[%clk 0:02:11]}  g5 {[%clk 0:02:29]} 13. Nc4 {[%clk 0:02:07]}  Qc7 {[%clk 0:02:28]} 14. f4 {[%clk 0:01:54]}  g4 {[%clk 0:02:25]} 15. Bxg4 {[%clk 0:01:52]}  h5 {[%clk 0:02:24]} 16. Bf3 {[%clk 0:01:51]}  h4 {[%clk 0:02:24]} 17. Ne5 {[%clk 0:01:48]}  Rh7 {[%clk 0:02:14]} 18. Ne4 {[%clk 0:01:39]}  O-O-O {[%clk 0:02:12]} 19. Nxd7 {[%clk 0:01:36]}  Nxd7 {[%clk 0:02:11]} 20. Qe2 {[%clk 0:01:31]}  Rg8 {[%clk 0:02:11]} 21. Ng5 {[%clk 0:01:27]}  Rhg7 {[%clk 0:02:09]} 22. Bh5 {[%clk 0:01:22]}  Rf8 {[%clk 0:01:50]} 23. c4 {[%clk 0:01:06]}  Bf6 {[%clk 0:01:41]} 24. Rac1 {[%clk 0:01:02]}  c5 {[%clk 0:01:20]} 25. d5 {[%clk 0:00:53]}  e5 {[%clk 0:01:19]} 26. Ne4 {[%clk 0:00:52]}  Rfg8 {[%clk 0:01:18]} 27. Bg4 {[%clk 0:00:48]}  Kb8 {[%clk 0:01:17]} 28. Bxd7 {[%clk 0:00:25]}  Qxd7 {[%clk 0:01:17]} 29. Nxf6 {[%clk 0:00:23]}  Rxg2+ {[%clk 0:00:59]} 30. Qxg2 {[%clk 0:00:23]}  Rxg2+ {[%clk 0:00:59]} 31. Kxg2 {[%clk 0:00:24]}  Qf5 {[%clk 0:00:54]} 32. fxe5 {[%clk 0:00:23]}  Qd3 {[%clk 0:00:49]} 33. Rf3 {[%clk 0:00:21]} 1-0


[Site "https://www.chess.com"]

[Event "Titled Tuesday Blitz June 29 2021"]
[White "azikom"]
[Black "XiaoKangZhong"]
[WhiteElo "2685"]
[BlackElo "2508"]
[Result "1-0"]
[Round "07"]
[TimeControl "180+1"]
[Date "2021.06.29"]
[WhiteClock "0:00:13"]
[BlackClock "0:00:08"]

1. d4 {[%clk 0:02:59]}  Nf6 {[%clk 0:02:59]} 2. Nf3 {[%clk 0:02:58]}  g6 {[%clk 0:03:00]} 3. c4 {[%clk 0:02:58]}  Bg7 {[%clk 0:03:00]} 4. Nc3 {[%clk 0:02:59]}  d5 {[%clk 0:03:00]} 5. Bg5 {[%clk 0:02:58]}  Ne4 {[%clk 0:02:47]} 6. Bh4 {[%clk 0:02:56]}  Nxc3 {[%clk 0:02:45]} 7. bxc3 {[%clk 0:02:56]}  dxc4 {[%clk 0:02:46]} 8. e3 {[%clk 0:02:54]}  c5 {[%clk 0:02:46]} 9. Bxc4 {[%clk 0:02:52]}  O-O {[%clk 0:02:46]} 10. O-O {[%clk 0:02:52]}  Qc7 {[%clk 0:02:40]} 11. Rc1 {[%clk 0:02:49]}  Nc6 {[%clk 0:02:40]} 12. h3 {[%clk 0:02:42]}  Na5 {[%clk 0:02:22]} 13. Be2 {[%clk 0:02:40]}  b6 {[%clk 0:02:21]} 14. Bg3 {[%clk 0:02:38]}  Qd7 {[%clk 0:02:15]} 15. e4 {[%clk 0:02:29]}  Bb7 {[%clk 0:02:10]} 16. d5 {[%clk 0:02:28]}  f5 {[%clk 0:01:53]} 17. exf5 {[%clk 0:02:23]}  Qxd5 {[%clk 0:01:44]} 18. fxg6 {[%clk 0:02:22]}  hxg6 {[%clk 0:01:41]} 19. Qc2 {[%clk 0:02:13]}  Rf6 {[%clk 0:01:16]} 20. Rfe1 {[%clk 0:02:12]}  Raf8 {[%clk 0:01:07]} 21. Rcd1 {[%clk 0:02:06]}  Qc6 {[%clk 0:00:57]} 22. Qd3 {[%clk 0:01:36]}  Qc8 {[%clk 0:00:49]} 23. Qe3 {[%clk 0:01:31]}  Re6 {[%clk 0:00:33]} 24. Qd2 {[%clk 0:01:24]}  Ref6 {[%clk 0:00:31]} 25. Ne5 {[%clk 0:01:17]}  Rd6 {[%clk 0:00:30]} 26. Qe3 {[%clk 0:01:10]}  Rff6 {[%clk 0:00:24]} 27. Bg4 {[%clk 0:01:06]}  Qd8 {[%clk 0:00:22]} 28. Rxd6 {[%clk 0:00:59]}  exd6 {[%clk 0:00:23]} 29. Nf3 {[%clk 0:00:59]}  Nc4 {[%clk 0:00:20]} 30. Be6+ {[%clk 0:00:57]}  Kh8 {[%clk 0:00:15]} 31. Bxc4 {[%clk 0:00:56]}  d5 {[%clk 0:00:15]} 32. Bd3 {[%clk 0:00:56]}  Rf8 {[%clk 0:00:15]} 33. Bxg6 {[%clk 0:00:54]}  Qf6 {[%clk 0:00:15]} 34. Bh5 {[%clk 0:00:49]}  d4 {[%clk 0:00:15]} 35. cxd4 {[%clk 0:00:49]}  cxd4 {[%clk 0:00:16]} 36. Qe7 {[%clk 0:00:46]}  Qc6 {[%clk 0:00:15]} 37. Bg4 {[%clk 0:00:44]}  d3 {[%clk 0:00:15]} 38. Qh4+ {[%clk 0:00:43]}  Kg8 {[%clk 0:00:13]} 39. Be6+ {[%clk 0:00:43]}  Rf7 {[%clk 0:00:13]} 40. Bxf7+ {[%clk 0:00:42]}  Kxf7 {[%clk 0:00:14]} 41. Re7+ {[%clk 0:00:41]}  Kf8 {[%clk 0:00:13]} 42. Qg5 {[%clk 0:00:39]}  Bf6 {[%clk 0:00:11]} 43. Qe3 {[%clk 0:00:23]}  Bxe7 {[%clk 0:00:11]} 44. Qxd3 {[%clk 0:00:23]}  Qd5 {[%clk 0:00:11]} 45. Qe3 {[%clk 0:00:22]}  Qxa2 {[%clk 0:00:10]} 46. Kh2 {[%clk 0:00:19]}  Bxf3 {[%clk 0:00:09]} 47. Qxf3+ {[%clk 0:00:19]}  Qf7 {[%clk 0:00:08]} 48. Qa8+ {[%clk 0:00:18]}  Kg7 {[%clk 0:00:07]} 49. Qxa7 {[%clk 0:00:18]}  b5 {[%clk 0:00:08]} 50. Qb6 {[%clk 0:00:16]}  Qc4 {[%clk 0:00:07]} 51. Be5+ {[%clk 0:00:15]}  Kf7 {[%clk 0:00:07]} 52. f4 {[%clk 0:00:15]}  b4 {[%clk 0:00:08]} 53. f5 {[%clk 0:00:14]}  b3 {[%clk 0:00:08]} 54. Qg6+ {[%clk 0:00:14]}  Kf8 {[%clk 0:00:08]} 55. Bg7+ {[%clk 0:00:13]}  Kg8 {[%clk 0:00:08]} 56. Bf6+ {[%clk 0:00:13]}  Kf8 {[%clk 0:00:08]} 57. Qg7+ {[%clk 0:00:13]}  Ke8 {[%clk 0:00:08]} 1-0


[Site "https://www.chess.com"]

[Event "Titled Tuesday Blitz June 29 2021"]
[White "chessbia"]
[Black "JosefineHeinemann"]
[WhiteElo "2324"]
[BlackElo "2492"]
[Result "0-1"]
[Round "07"]
[TimeControl "180+1"]
[Date "2021.06.29"]
[WhiteClock "0:00:03"]
[BlackClock "0:00:06"]

1. d4 {[%clk 0:03:00]}  Nf6 {[%clk 0:02:58]} 2. c4 {[%clk 0:03:00]}  g6 {[%clk 0:02:55]} 3. Nc3 {[%clk 0:03:00]}  d5 {[%clk 0:02:55]} 4. Nf3 {[%clk 0:02:59]}  Bg7 {[%clk 0:02:54]} 5. Bf4 {[%clk 0:02:59]}  O-O {[%clk 0:02:51]} 6. Rc1 {[%clk 0:02:59]}  dxc4 {[%clk 0:02:37]} 7. e3 {[%clk 0:02:56]}  Be6 {[%clk 0:02:26]} 8. Ng5 {[%clk 0:02:55]}  Bd5 {[%clk 0:02:26]} 9. e4 {[%clk 0:02:45]}  h6 {[%clk 0:02:25]} 10. exd5 {[%clk 0:02:37]}  hxg5 {[%clk 0:02:24]} 11. Bxg5 {[%clk 0:02:34]}  Nxd5 {[%clk 0:02:24]} 12. Bxc4 {[%clk 0:02:30]}  Nb6 {[%clk 0:02:23]} 13. Bb3 {[%clk 0:02:28]}  Qxd4 {[%clk 0:02:22]} 14. Qxd4 {[%clk 0:02:18]}  Bxd4 {[%clk 0:02:23]} 15. O-O {[%clk 0:02:04]}  Nc6 {[%clk 0:02:06]} 16. Rfe1 {[%clk 0:01:59]}  Bxc3 {[%clk 0:02:00]} 17. Rxc3 {[%clk 0:01:57]}  e6 {[%clk 0:02:00]} 18. Rh3 {[%clk 0:01:47]}  Kg7 {[%clk 0:01:14]} 19. Bh6+ {[%clk 0:01:46]}  Kf6 {[%clk 0:01:14]} 20. Bxf8 {[%clk 0:01:45]}  Rxf8 {[%clk 0:01:15]} 21. Rf3+ {[%clk 0:01:42]}  Ke7 {[%clk 0:01:12]} 22. h4 {[%clk 0:01:39]}  Nd4 {[%clk 0:01:12]} 23. Rd3 {[%clk 0:01:38]}  c5 {[%clk 0:01:10]} 24. Bd1 {[%clk 0:01:34]}  Nd5 {[%clk 0:01:07]} 25. g3 {[%clk 0:01:28]}  b6 {[%clk 0:00:59]} 26. Kg2 {[%clk 0:01:23]}  a5 {[%clk 0:00:57]} 27. a3 {[%clk 0:01:18]}  Kd6 {[%clk 0:00:57]} 28. Bf3 {[%clk 0:01:15]}  e5 {[%clk 0:00:55]} 29. Rdd1 {[%clk 0:00:49]}  f5 {[%clk 0:00:54]} 30. Bxd5 {[%clk 0:00:46]}  Kxd5 {[%clk 0:00:55]} 31. Rh1 {[%clk 0:00:44]}  Rh8 {[%clk 0:00:45]} 32. Rb1 {[%clk 0:00:34]}  c4 {[%clk 0:00:42]} 33. Rbd1 {[%clk 0:00:21]}  b5 {[%clk 0:00:39]} 34. Rd2 {[%clk 0:00:21]}  Kc5 {[%clk 0:00:36]} 35. Rhd1 {[%clk 0:00:18]}  Rd8 {[%clk 0:00:33]} 36. f4 {[%clk 0:00:18]}  e4 {[%clk 0:00:33]} 37. Kf2 {[%clk 0:00:17]}  b4 {[%clk 0:00:33]} 38. axb4+ {[%clk 0:00:17]}  axb4 {[%clk 0:00:34]} 39. Ke3 {[%clk 0:00:17]}  Nc2+ {[%clk 0:00:32]} 40. Ke2 {[%clk 0:00:16]}  Nd4+ {[%clk 0:00:18]} 41. Ke3 {[%clk 0:00:15]}  Nc2+ {[%clk 0:00:15]} 42. Ke2 {[%clk 0:00:16]}  Nd4+ {[%clk 0:00:15]} 43. Kf2 {[%clk 0:00:15]}  c3 {[%clk 0:00:14]} 44. bxc3 {[%clk 0:00:15]}  bxc3 {[%clk 0:00:15]} 45. Ra2 {[%clk 0:00:15]}  Rb8 {[%clk 0:00:07]} 46. Ra5+ {[%clk 0:00:14]}  Kb4 {[%clk 0:00:08]} 47. Rb1+ {[%clk 0:00:11]}  Nb3 {[%clk 0:00:08]} 48. Ra7 {[%clk 0:00:09]}  c2 {[%clk 0:00:08]} 49. Re1 {[%clk 0:00:09]}  c1=Q {[%clk 0:00:08]} 50. Rxc1 {[%clk 0:00:09]}  Nxc1 {[%clk 0:00:09]} 51. Ra6 {[%clk 0:00:10]}  Nd3+ {[%clk 0:00:08]} 52. Ke3 {[%clk 0:00:10]}  Kc3 {[%clk 0:00:07]} 53. Rxg6 {[%clk 0:00:09]}  Rb2 {[%clk 0:00:07]} 54. Rc6+ {[%clk 0:00:07]}  Kb4 {[%clk 0:00:05]} 55. h5 {[%clk 0:00:07]}  Rh2 {[%clk 0:00:05]} 56. h6 {[%clk 0:00:06]}  Nc5 {[%clk 0:00:05]} 57. Rg6 {[%clk 0:00:06]}  Kc4 {[%clk 0:00:04]} 58. Rg5 {[%clk 0:00:05]}  Rxh6 {[%clk 0:00:04]} 59. Rxf5 {[%clk 0:00:05]}  Rg6 {[%clk 0:00:04]} 60. Rg5 {[%clk 0:00:05]}  Rxg5 {[%clk 0:00:03]} 61. fxg5 {[%clk 0:00:06]}  Kd5 {[%clk 0:00:04]} 62. g6 {[%clk 0:00:06]}  Ke6 {[%clk 0:00:04]} 63. Kd4 {[%clk 0:00:05]}  Kf6 {[%clk 0:00:04]} 64. Kxc5 {[%clk 0:00:05]}  e3 {[%clk 0:00:04]} 65. g4 {[%clk 0:00:03]}  e2 {[%clk 0:00:05]} 66. g7 {[%clk 0:00:03]}  Kxg7 {[%clk 0:00:05]} 67. g5 {[%clk 0:00:02]}  e1=Q {[%clk 0:00:06]} 68. g6 {[%clk 0:00:03]}  Qg3 {[%clk 0:00:06]} 0-1


[Site "https://www.chess.com"]

[Event "Titled Tuesday Blitz June 29 2021"]
[White "eduardoperalta"]
[Black "sau6on"]
[WhiteElo "2573"]
[BlackElo "2400"]
[Result "0-1"]
[Round "07"]
[TimeControl "180+1"]
[Date "2021.06.29"]
[WhiteClock "0:00:08"]
[BlackClock "0:00:21"]

1. d4 {[%clk 0:03:00]}  Nf6 {[%clk 0:02:54]} 2. Bg5 {[%clk 0:02:59]}  Ne4 {[%clk 0:02:47]} 3. Bf4 {[%clk 0:02:59]}  c5 {[%clk 0:02:44]} 4. f3 {[%clk 0:02:28]}  Qa5+ {[%clk 0:02:34]} 5. c3 {[%clk 0:02:14]}  Nf6 {[%clk 0:02:27]} 6. e4 {[%clk 0:00:21]}  cxd4 {[%clk 0:02:23]} 7. Qxd4 {[%clk 0:00:09]}  Nc6 {[%clk 0:02:21]} 8. Qd2 {[%clk 0:00:10]}  d6 {[%clk 0:02:18]} 9. Na3 {[%clk 0:00:10]}  g6 {[%clk 0:01:56]} 10. Nc4 {[%clk 0:00:10]}  Qc7 {[%clk 0:01:56]} 11. Be3 {[%clk 0:00:10]}  Be6 {[%clk 0:01:50]} 12. Bd3 {[%clk 0:00:09]}  d5 {[%clk 0:01:39]} 13. Na3 {[%clk 0:00:05]}  dxe4 {[%clk 0:01:36]} 14. Nb5 {[%clk 0:00:05]}  Qd7 {[%clk 0:01:31]} 15. Bxe4 {[%clk 0:00:05]}  Nxe4 {[%clk 0:00:50]} 16. fxe4 {[%clk 0:00:05]}  Qxd2+ {[%clk 0:00:46]} 17. Bxd2 {[%clk 0:00:06]}  O-O-O {[%clk 0:00:43]} 18. Nf3 {[%clk 0:00:06]}  Bg7 {[%clk 0:00:36]} 19. Be3 {[%clk 0:00:06]}  a6 {[%clk 0:00:34]} 20. Nbd4 {[%clk 0:00:06]}  Bd7 {[%clk 0:00:31]} 21. O-O {[%clk 0:00:05]}  e5 {[%clk 0:00:20]} 22. Nb3 {[%clk 0:00:03]}  f6 {[%clk 0:00:20]} 23. Nc5 {[%clk 0:00:03]}  Bg4 {[%clk 0:00:20]} 24. Rad1 {[%clk 0:00:03]}  Kc7 {[%clk 0:00:19]} 25. Nb3 {[%clk 0:00:02]}  Bc8 {[%clk 0:00:19]} 26. Nbd2 {[%clk 0:00:02]}  Rhe8 {[%clk 0:00:19]} 27. Nc4 {[%clk 0:00:02]}  Rxd1 {[%clk 0:00:18]} 28. Rxd1 {[%clk 0:00:02]}  Kb8 {[%clk 0:00:18]} 29. Bb6 {[%clk 0:00:02]}  Be6 {[%clk 0:00:18]} 30. Nd6 {[%clk 0:00:03]}  Re7 {[%clk 0:00:17]} 31. c4 {[%clk 0:00:03]}  Bf8 {[%clk 0:00:16]} 32. c5 {[%clk 0:00:03]}  Rd7 {[%clk 0:00:17]} 33. a3 {[%clk 0:00:03]}  Bc4 {[%clk 0:00:16]} 34. b4 {[%clk 0:00:03]}  Be2 {[%clk 0:00:16]} 35. Rd2 {[%clk 0:00:04]}  Bxf3 {[%clk 0:00:17]} 36. gxf3 {[%clk 0:00:05]}  Nd4 {[%clk 0:00:17]} 37. Kf2 {[%clk 0:00:05]}  Bxd6 {[%clk 0:00:17]} 38. cxd6 {[%clk 0:00:06]}  Rxd6 {[%clk 0:00:18]} 39. Bc5 {[%clk 0:00:06]}  Rd7 {[%clk 0:00:18]} 40. Bf8 {[%clk 0:00:06]}  Kc7 {[%clk 0:00:18]} 41. Bh6 {[%clk 0:00:06]}  Kc6 {[%clk 0:00:19]} 42. Be3 {[%clk 0:00:06]}  Kb5 {[%clk 0:00:19]} 43. Rb2 {[%clk 0:00:05]}  Rc7 {[%clk 0:00:18]} 44. Bxd4 {[%clk 0:00:04]}  exd4 {[%clk 0:00:18]} 45. Ke2 {[%clk 0:00:04]}  Rc3 {[%clk 0:00:18]} 46. Rd2 {[%clk 0:00:03]}  Kc4 {[%clk 0:00:18]} 47. f4 {[%clk 0:00:02]}  Rxa3 {[%clk 0:00:17]} 48. Kf2 {[%clk 0:00:01]}  Rd3 {[%clk 0:00:17]} 49. Re2 {[%clk 0:00:01]}  Re3 {[%clk 0:00:16]} 50. Rxe3 {[%clk 0:00:01]}  dxe3+ {[%clk 0:00:16]} 51. Kxe3 {[%clk 0:00:02]}  b6 {[%clk 0:00:17]} 52. e5 {[%clk 0:00:03]}  fxe5 {[%clk 0:00:16]} 53. fxe5 {[%clk 0:00:04]}  Kd5 {[%clk 0:00:16]} 54. Kf4 {[%clk 0:00:05]}  a5 {[%clk 0:00:15]} 55. bxa5 {[%clk 0:00:04]}  bxa5 {[%clk 0:00:15]} 56. Ke3 {[%clk 0:00:02]}  Kxe5 {[%clk 0:00:15]} 57. Kd3 {[%clk 0:00:03]}  Kf4 {[%clk 0:00:15]} 58. Kc4 {[%clk 0:00:03]}  Kg4 {[%clk 0:00:16]} 59. Kb5 {[%clk 0:00:04]}  Kh3 {[%clk 0:00:17]} 60. Kxa5 {[%clk 0:00:05]}  Kxh2 {[%clk 0:00:17]} 61. Kb4 {[%clk 0:00:06]}  g5 {[%clk 0:00:18]} 62. Kc3 {[%clk 0:00:07]}  g4 {[%clk 0:00:19]} 63. Kd2 {[%clk 0:00:07]}  g3 {[%clk 0:00:20]} 64. Ke1 {[%clk 0:00:08]}  g2 {[%clk 0:00:21]} 0-1


[Site "https://www.chess.com"]

[Event "Titled Tuesday Blitz June 29 2021"]
[White "elcandado"]
[Black "TheBigBoss04"]
[WhiteElo "2600"]
[BlackElo "2771"]
[Result "0-1"]
[Round "07"]
[TimeControl "180+1"]
[Date "2021.06.29"]
[WhiteClock "0:00:02"]
[BlackClock "0:00:08"]

1. d4 {[%clk 0:03:00]}  Nf6 {[%clk 0:02:57]} 2. Bf4 {[%clk 0:03:00]}  d5 {[%clk 0:02:56]} 3. e3 {[%clk 0:03:00]}  Bf5 {[%clk 0:02:56]} 4. c4 {[%clk 0:02:59]}  e6 {[%clk 0:02:55]} 5. Nc3 {[%clk 0:02:59]}  Bb4 {[%clk 0:02:42]} 6. Qb3 {[%clk 0:02:56]}  c5 {[%clk 0:02:41]} 7. dxc5 {[%clk 0:02:53]}  Na6 {[%clk 0:02:41]} 8. cxd5 {[%clk 0:02:47]}  Nxd5 {[%clk 0:02:28]} 9. Bb5+ {[%clk 0:02:36]}  Kf8 {[%clk 0:02:24]} 10. Bd6+ {[%clk 0:02:34]}  Kg8 {[%clk 0:02:24]} 11. Bxa6 {[%clk 0:02:27]}  bxa6 {[%clk 0:02:20]} 12. Ne2 {[%clk 0:02:26]}  Rc8 {[%clk 0:02:16]} 13. O-O {[%clk 0:02:21]}  Nxc3 {[%clk 0:02:13]} 14. Nxc3 {[%clk 0:01:45]}  Bxc5 {[%clk 0:02:10]} 15. Bxc5 {[%clk 0:01:45]}  Rxc5 {[%clk 0:02:11]} 16. Qb7 {[%clk 0:01:36]}  h5 {[%clk 0:01:45]} 17. Qxa7 {[%clk 0:01:30]}  Rc6 {[%clk 0:01:31]} 18. e4 {[%clk 0:01:27]}  Bg6 {[%clk 0:01:28]} 19. Rfd1 {[%clk 0:01:26]}  Rd6 {[%clk 0:01:09]} 20. Rxd6 {[%clk 0:01:23]}  Qxd6 {[%clk 0:01:10]} 21. Rd1 {[%clk 0:01:22]}  Qb4 {[%clk 0:01:08]} 22. Rd8+ {[%clk 0:00:50]}  Kh7 {[%clk 0:01:07]} 23. Rxh8+ {[%clk 0:00:50]}  Kxh8 {[%clk 0:01:08]} 24. Qxa6 {[%clk 0:00:46]}  Qxb2 {[%clk 0:01:06]} 25. Qc8+ {[%clk 0:00:45]}  Kh7 {[%clk 0:01:05]} 26. f3 {[%clk 0:00:44]}  Qc1+ {[%clk 0:00:57]} 27. Kf2 {[%clk 0:00:44]}  Qc2+ {[%clk 0:00:57]} 28. Kf1 {[%clk 0:00:41]}  h4 {[%clk 0:00:51]} 29. h3 {[%clk 0:00:40]}  f5 {[%clk 0:00:45]} 30. Qc5 {[%clk 0:00:28]}  fxe4 {[%clk 0:00:38]} 31. Nxe4 {[%clk 0:00:23]}  Qxa2 {[%clk 0:00:33]} 32. Qe5 {[%clk 0:00:18]}  Qb1+ {[%clk 0:00:32]} 33. Kf2 {[%clk 0:00:18]}  Qb6+ {[%clk 0:00:31]} 34. Kf1 {[%clk 0:00:18]}  Bf5 {[%clk 0:00:26]} 35. Qf4 {[%clk 0:00:16]}  Qb1+ {[%clk 0:00:24]} 36. Kf2 {[%clk 0:00:15]}  Qb6+ {[%clk 0:00:24]} 37. Kf1 {[%clk 0:00:15]}  Qd8 {[%clk 0:00:23]} 38. Ng5+ {[%clk 0:00:14]}  Kg6 {[%clk 0:00:22]} 39. Ne4 {[%clk 0:00:14]}  Qd1+ {[%clk 0:00:21]} 40. Kf2 {[%clk 0:00:14]}  Qd4+ {[%clk 0:00:22]} 41. Kf1 {[%clk 0:00:14]}  Bxe4 {[%clk 0:00:19]} 42. fxe4 {[%clk 0:00:13]}  Qf6 {[%clk 0:00:19]} 43. Qxf6+ {[%clk 0:00:12]}  Kxf6 {[%clk 0:00:12]} 44. Kf2 {[%clk 0:00:12]}  Ke5 {[%clk 0:00:13]} 45. Ke3 {[%clk 0:00:12]}  g6 {[%clk 0:00:12]} 46. Kf3 {[%clk 0:00:09]}  Kd4 {[%clk 0:00:11]} 47. Kg4 {[%clk 0:00:06]}  Kxe4 {[%clk 0:00:11]} 48. Kxh4 {[%clk 0:00:07]}  Kf4 {[%clk 0:00:10]} 49. g3+ {[%clk 0:00:07]}  Kf3 {[%clk 0:00:07]} 50. Kg5 {[%clk 0:00:02]}  e5 {[%clk 0:00:08]} 0-1


[Site "https://www.chess.com"]

[Event "Titled Tuesday Blitz June 29 2021"]
[White "erichansen"]
[Black "tdf98pantani"]
[WhiteElo "2919"]
[BlackElo "2654"]
[Result "1-0"]
[Round "07"]
[TimeControl "180+1"]
[Date "2021.06.29"]
[WhiteClock "0:00:02"]
[BlackClock "0:00:12"]

1. e4 {[%clk 0:03:00]}  c6 {[%clk 0:02:52]} 2. Nf3 {[%clk 0:03:00]}  d5 {[%clk 0:02:52]} 3. d3 {[%clk 0:03:01]}  Qc7 {[%clk 0:02:50]} 4. Be2 {[%clk 0:03:01]}  e5 {[%clk 0:02:49]} 5. Nbd2 {[%clk 0:03:00]}  Nf6 {[%clk 0:02:50]} 6. O-O {[%clk 0:03:00]}  Bd6 {[%clk 0:02:50]} 7. Re1 {[%clk 0:03:00]}  O-O {[%clk 0:02:50]} 8. Bf1 {[%clk 0:03:01]}  Nbd7 {[%clk 0:02:49]} 9. h3 {[%clk 0:03:00]}  Re8 {[%clk 0:02:47]} 10. c3 {[%clk 0:03:01]}  a5 {[%clk 0:02:46]} 11. Qc2 {[%clk 0:03:01]}  a4 {[%clk 0:02:46]} 12. d4 {[%clk 0:02:55]}  dxe4 {[%clk 0:02:42]} 13. Nxe4 {[%clk 0:02:56]}  Nxe4 {[%clk 0:02:42]} 14. Qxe4 {[%clk 0:02:55]}  Nf6 {[%clk 0:02:42]} 15. Qh4 {[%clk 0:02:56]}  e4 {[%clk 0:02:38]} 16. Nd2 {[%clk 0:02:39]}  Bf5 {[%clk 0:02:33]} 17. Nc4 {[%clk 0:02:39]}  Be7 {[%clk 0:02:25]} 18. Bf4 {[%clk 0:02:38]}  Qd8 {[%clk 0:02:20]} 19. Bg5 {[%clk 0:02:28]}  h6 {[%clk 0:02:19]} 20. Bxf6 {[%clk 0:02:27]}  Bxf6 {[%clk 0:02:20]} 21. Qf4 {[%clk 0:02:24]}  Bg6 {[%clk 0:02:14]} 22. Ne3 {[%clk 0:01:25]}  Bg5 {[%clk 0:02:09]} 23. Qg4 {[%clk 0:01:24]}  Ra5 {[%clk 0:02:04]} 24. Rad1 {[%clk 0:01:11]}  f5 {[%clk 0:02:04]} 25. Qe2 {[%clk 0:01:12]}  f4 {[%clk 0:01:49]} 26. Nc4 {[%clk 0:01:11]}  Rd5 {[%clk 0:01:47]} 27. Ne5 {[%clk 0:01:11]}  Bf5 {[%clk 0:01:44]} 28. Qh5 {[%clk 0:01:08]}  Kh7 {[%clk 0:01:40]} 29. Bc4 {[%clk 0:01:04]}  f3 {[%clk 0:01:27]} 30. Bxd5 {[%clk 0:00:51]}  g6 {[%clk 0:01:22]} 31. Nf7 {[%clk 0:00:40]}  gxh5 {[%clk 0:00:53]} 32. Nxd8 {[%clk 0:00:41]}  cxd5 {[%clk 0:00:47]} 33. Nf7 {[%clk 0:00:35]}  Bf4 {[%clk 0:00:43]} 34. g3 {[%clk 0:00:26]}  Bc7 {[%clk 0:00:40]} 35. Ne5 {[%clk 0:00:21]}  h4 {[%clk 0:00:40]} 36. g4 {[%clk 0:00:19]}  Be6 {[%clk 0:00:40]} 37. c4 {[%clk 0:00:18]}  h5 {[%clk 0:00:40]} 38. Kh1 {[%clk 0:00:11]}  hxg4 {[%clk 0:00:39]} 39. Nxg4 {[%clk 0:00:11]}  Rf8 {[%clk 0:00:25]} 40. cxd5 {[%clk 0:00:10]}  Bxg4 {[%clk 0:00:22]} 41. hxg4 {[%clk 0:00:10]}  Rf4 {[%clk 0:00:23]} 42. Rc1 {[%clk 0:00:05]}  Bd6 {[%clk 0:00:23]} 43. Rg1 {[%clk 0:00:03]}  Kg6 {[%clk 0:00:17]} 44. Rc8 {[%clk 0:00:02]}  Rf7 {[%clk 0:00:16]} 45. Rg8+ {[%clk 0:00:02]}  Kh7 {[%clk 0:00:16]} 46. Re8 {[%clk 0:00:02]}  Rf4 {[%clk 0:00:14]} 47. Re6 {[%clk 0:00:02]}  Bb4 {[%clk 0:00:11]} 48. a3 {[%clk 0:00:02]}  Kg7 {[%clk 0:00:12]} 49. axb4 {[%clk 0:00:02]} 1-0


[Site "https://www.chess.com"]

[Event "Titled Tuesday Blitz June 29 2021"]
[White "esrosenberg"]
[Black "Omk124"]
[WhiteElo "2373"]
[BlackElo "2540"]
[Result "1-0"]
[Round "07"]
[TimeControl "180+1"]
[Date "2021.06.29"]
[WhiteClock "0:01:14"]
[BlackClock "0:00:45"]

1. Nf3 {[%clk 0:03:00]}  Nf6 {[%clk 0:03:00]} 2. c4 {[%clk 0:03:00]}  g6 {[%clk 0:02:57]} 3. Nc3 {[%clk 0:03:00]}  Bg7 {[%clk 0:02:58]} 4. e4 {[%clk 0:03:00]}  d6 {[%clk 0:02:57]} 5. d4 {[%clk 0:03:00]}  O-O {[%clk 0:02:58]} 6. h3 {[%clk 0:03:01]}  e5 {[%clk 0:02:58]} 7. dxe5 {[%clk 0:03:01]}  dxe5 {[%clk 0:02:59]} 8. Qxd8 {[%clk 0:03:01]}  Rxd8 {[%clk 0:03:00]} 9. Bg5 {[%clk 0:03:01]}  Re8 {[%clk 0:02:58]} 10. Nd5 {[%clk 0:02:59]}  Nxd5 {[%clk 0:02:58]} 11. cxd5 {[%clk 0:03:00]}  c6 {[%clk 0:02:58]} 12. Bc4 {[%clk 0:03:01]}  cxd5 {[%clk 0:02:58]} 13. Bxd5 {[%clk 0:03:02]}  Nc6 {[%clk 0:02:56]} 14. O-O-O {[%clk 0:03:01]}  Nb4 {[%clk 0:02:46]} 15. Bb3 {[%clk 0:02:59]}  Be6 {[%clk 0:02:46]} 16. Bxe6 {[%clk 0:02:58]}  Rxe6 {[%clk 0:02:47]} 17. a3 {[%clk 0:02:53]}  Nc6 {[%clk 0:02:45]} 18. Rd7 {[%clk 0:02:50]}  b6 {[%clk 0:02:34]} 19. Rhd1 {[%clk 0:02:47]}  Nd4 {[%clk 0:02:35]} 20. Nxd4 {[%clk 0:02:46]}  exd4 {[%clk 0:02:36]} 21. f3 {[%clk 0:02:47]}  Rc6+ {[%clk 0:02:35]} 22. Kb1 {[%clk 0:02:45]}  h5 {[%clk 0:02:28]} 23. Rc1 {[%clk 0:02:32]}  Rc5 {[%clk 0:02:28]} 24. Rxc5 {[%clk 0:02:21]}  bxc5 {[%clk 0:02:29]} 25. b4 {[%clk 0:02:19]}  c4 {[%clk 0:02:24]} 26. Kc2 {[%clk 0:02:12]}  a5 {[%clk 0:02:20]} 27. Rd8+ {[%clk 0:02:07]}  Rxd8 {[%clk 0:02:18]} 28. Bxd8 {[%clk 0:02:08]}  d3+ {[%clk 0:02:08]} 29. Kd2 {[%clk 0:02:07]}  a4 {[%clk 0:01:14]} 30. f4 {[%clk 0:02:00]}  Bd4 {[%clk 0:01:12]} 31. b5 {[%clk 0:01:47]}  Kf8 {[%clk 0:01:10]} 32. b6 {[%clk 0:01:46]}  Bc5 {[%clk 0:00:56]} 33. Bc7 {[%clk 0:01:26]}  Ke7 {[%clk 0:00:43]} 34. b7 {[%clk 0:01:26]}  Ba7 {[%clk 0:00:44]} 35. b8=Q {[%clk 0:01:24]}  Bxb8 {[%clk 0:00:45]} 36. Bxb8 {[%clk 0:01:25]}  Kd7 {[%clk 0:00:46]} 37. Be5 {[%clk 0:01:21]}  Kc6 {[%clk 0:00:47]} 38. Kc3 {[%clk 0:01:16]}  Kc5 {[%clk 0:00:45]} 39. Bd4+ {[%clk 0:01:15]}  Kb5 {[%clk 0:00:46]} 40. Be3 {[%clk 0:01:15]}  f6 {[%clk 0:00:46]} 41. g4 {[%clk 0:01:14]}  hxg4 {[%clk 0:00:45]} 42. hxg4 {[%clk 0:01:14]} 1-0


[Site "https://www.chess.com"]